[Event "2nd Gujarat Open 2019"]
[Site "Ahmedabad, Gujarat"]
[Date "2019.09.29"]
[Round "10.2"]
[White "Chanda, Sandipan"]
[Black "Saptarshi, Roy"]
[Result "1-0"]
[ECO "E46"]
[WhiteElo "2529"]
[BlackElo "2480"]
[Annotator "ChessBase"]
[PlyCount "103"]
[EventDate "2019.09.22"]
[EventType "swiss"]
[EventCountry "IND"]
[SourceTitle "playchess.com"]
[Source "ChessBase"]
[SourceQuality "1"]
[TimeControl "5400+30"]

1. d4 {[%emt 0:00:00]} Nf6 {[%emt 0:00:00]} 2. c4 {[%emt 0:00:00]} e6 {[%emt 0:00:01]} 3. Nc3 {[%emt 0:00:06]} Bb4 {[%emt 0:00:19]} 4. e3 {[%emt 0:00:16]} O-O {[%emt 0:00:10]} 5. Bd2 {[%emt 0:00:10]} d5 {[%emt 0:00:28]} 6. Nf3 {[%emt 0:00:12]} b6 {[%emt 0:00:12]} 7. cxd5 {[%emt 0:00:09]} exd5 {[%emt 0:00:06]} 8. Rc1 {[%emt 0:00:09]} Bb7 {[%emt 0:00:24]} 9. Bd3 {[%emt 0:00:11]} Nbd7 {[%emt 0:00:20]} 10. O-O {[%emt 0:00:12]} Be7 {[%emt 0:00:31]} 11. Qc2 {[%emt 0:01:44]} c5 {[%emt 0:02:30]} 12. Ne5 {[%emt 0:00:09]} cxd4 {[%emt 0:07:06]} 13. exd4 {[%emt 0:01:18]} Nxe5 {[%emt 0:02:00]} 14. dxe5 {[%emt 0:00:08]} Ne4 {[%emt 0:00:05]} 15. Rcd1 {[%emt 0:02:07]} Rc8 {[%emt 0:02:46]} 16. Qb1 {[%emt 0:00:20]} f5 {[%emt 0:15:49]} 17. exf6 {[%emt 0:02:42]} Nxf6 {[%emt 0:00:08]} 18. Bf5 {[%emt 0:06:39]} d4 {[%emt 0:18:55]} 19. Bg5 {[%emt 0:06:55]} h6 {[%emt 0:12:24]} 20. Bxf6 {[%emt 0:02:42]} Bxf6 {[%emt 0:00:18]} 21. Bxc8 {[%emt 0:00:58]} Qxc8 {[%emt 0:00:05]} 22. Ne4 {[%emt 0:07:18]} Be5 {[%emt 0:00:13]} 23. Rfe1 {[%emt 0:04:46]} Rf4 {[%emt 0:08:51]} 24. Ng3 {[%emt 0:09:33]} Qc6 {[%emt 0:04:34]} 25. f3 {[%emt 0:00:49]} Qd6 {[%emt 0:03:30]} 26. Qd3 {[%emt 0:05:14]} Bd5 {[%emt 0:15:38]} 27. Qe2 {[%emt 0:04:07]} Bf6 {[%emt 0:00:07]} 28. Nh5 {[%emt 0:01:40]} Rf5 {[%emt 0:01:37]} 29. Nxf6+ {[%emt 0:00:10]} Qxf6 {[%emt 0:00:05]} 30. Qe7 {[%emt 0:01:08]} Rxf3 {[%emt 0:03:24]} 31. Qxf6 {[%emt 0:00:55]} Rxf6 {[%emt 0:00:04]} 32. b3 {[%emt 0:01:55]} Rg6 {[%emt 0:00:24]} 33. g3 {[%emt 0:00:10]} Rg4 {[%emt 0:00:53]} 34. Re8+ {[%emt 0:00:34]} Kf7 {[%emt 0:01:32]} 35. Rd8 {[%emt 0:00:06]} Rg5 {[%emt 0:01:07]} 36. Rxd4 {[%emt 0:00:26]} Ke6 {[%emt 0:00:04]} 37. Ra4 {[%emt 0:04:28]} a5 {[%emt 0:00:15]} 38. Rb8 {[%emt 0:00:17]} Bc6 {[%emt 0:00:17]} 39. Rxb6 {[%emt 0:00:28]} Kd7 {[%emt 0:00:06]} 40. Rc4 {[%emt 0:00:18]} Bb5 {[%emt 0:00:22]} 41. Rb7+ {[%emt 0:01:08]} Kd6 {[%emt 0:00:08]} 42. Rd4+ {[%emt 0:00:47]} Kc5 {[%emt 0:00:25]} 43. Rf4 {[%emt 0:00:22]} g6 {[%emt 0:00:19]} 44. Ra7 {[%emt 0:01:41]} Kb6 {[%emt 0:00:10]} 45. Rg7 {[%emt 0:00:09]} Bd3 {[%emt 0:00:20]} 46. Kf2 {[%emt 0:01:03]} Rd5 {[%emt 0:01:25]} 47. Ke3 {[%emt 0:01:45]} Bb1 {[%emt 0:00:43]} 48. Rf6+ {[%emt 0:01:17]} Kc5 {[%emt 0:00:06]} 49. Rc7+ {[%emt 0:00:26]} Kb4 50. Rc4+ {[%emt 0:00:38]} Ka3 {[%emt 0:00:11]} 51. Rf2 {[%emt 0:01:39]} Re5+ {[%emt 0:01:10]} 52. Kd4 {[%emt 0:00:23]} 1-0

[Event "2nd Gujarat Open 2019"]
[Site "Ahmedabad, Gujarat"]
[Date "2019.09.29"]
[Round "10.3"]
[White "Vasquez Schroeder, Rodrigo"]
[Black "Das, Sayantan"]
[Result "1-0"]
[ECO "E68"]
[WhiteElo "2476"]
[BlackElo "2434"]
[Annotator "ChessBase"]
[PlyCount "69"]
[EventDate "2019.09.22"]
[EventType "swiss"]
[EventCountry "IND"]
[SourceTitle "playchess.com"]
[Source "ChessBase"]
[SourceQuality "1"]
[TimeControl "5400+30"]

1. d4 {[%emt 0:00:00]} Nf6 {[%emt 0:00:04]} 2. c4 {[%emt 0:00:00]} g6 {[%emt 0:00:12]} 3. g3 {[%emt 0:00:04]} Bg7 {[%emt 0:00:30]} 4. Bg2 {[%emt 0:00:06]} O-O {[%emt 0:00:07]} 5. Nc3 {[%emt 0:00:04]} d6 {[%emt 0:00:35]} 6. Nf3 {[%emt 0:00:06]} Nbd7 {[%emt 0:03:45]} 7. O-O {[%emt 0:00:19]} e5 {[%emt 0:00:08]} 8. e4 {[%emt 0:00:05]} exd4 {[%emt 0:00:48]} 9. Nxd4 {[%emt 0:00:06]} Re8 {[%emt 0:00:13]} 10. h3 {[%emt 0:00:27]} Nc5 {[%emt 0:01:08]} 11. Re1 {[%emt 0:00:07]} a5 {[%emt 0:00:37]} 12. Rb1 {[%emt 0:02:28]} Bd7 {[%emt 0:02:42]} 13. Bf4 {[%emt 0:03:44]} Nh5 {[%emt 0:05:19]} 14. Be3 {[%emt 0:00:33]} Nf6 {[%emt 0:02:52]} 15. f3 {[%emt 0:01:18]} c6 {[%emt 0:02:36]} 16. Qd2 {[%emt 0:02:57]} Qc7 {[%emt 0:03:19]} 17. g4 {[%emt 0:00:39]} Rad8 {[%emt 0:07:09]} 18. Kh1 {[%emt 0:02:44]} Ne6 {[%emt 0:09:25]} 19. Qf2 {[%emt 0:01:31]} Qb8 {[%emt 0:08:09]} 20. Rbd1 {[%emt 0:05:25]} Nxd4 {[%emt 0:07:13]} 21. Bxd4 {[%emt 0:00:35]} Be6 {[%emt 0:01:20]} 22. Bf1 {[%emt 0:01:28]} h5 {[%emt 0:10:09]} 23. Qh4 {[%emt 0:02:38]} Nd7 {[%emt 0:04:10]} 24. gxh5 {[%emt 0:00:47]} Ne5 {[%emt 0:07:10]} 25. hxg6 {[%emt 0:05:12]} Nxg6 {[%emt 0:06:01]} 26. Qg5 {[%emt 0:00:29]} Be5 {[%emt 0:01:58]} 27. Be3 {[%emt 0:02:35]} Bd7 {[%emt 0:13:06]} 28. f4 {[%emt 0:05:19]} Bxc3 {[%emt 0:00:33]} 29. bxc3 {[%emt 0:00:05]} Rxe4 {[%emt 0:00:06]} 30. f5 {[%emt 0:06:06]} Re5 {[%emt 0:00:39]} 31. Bd4 {[%emt 0:00:24]} Rxf5 {[%emt 0:01:29]} 32. Qh6 {[%emt 0:00:04]} Re5 {[%emt 0:00:21]} 33. Bd3 {[%emt 0:00:42]} Be8 {[%emt 0:00:21]} 34. Rf1 {[%emt 0:00:30]} c5 {[%emt 0:02:09]} 35. Bxg6 {[%emt 0:00:11]} 1-0

[Event "2nd Gujarat Open 2019"]
[Site "Ahmedabad, Gujarat"]
[Date "2019.09.29"]
[Round "10.4"]
[White "Himanshu, Sharma"]
[Black "Manush Shah"]
[Result "0-1"]
[ECO "B12"]
[WhiteElo "2408"]
[BlackElo "2352"]
[Annotator "ChessBase"]
[PlyCount "91"]
[EventDate "2019.09.22"]
[EventType "swiss"]
[EventCountry "IND"]
[SourceTitle "playchess.com"]
[Source "ChessBase"]
[SourceQuality "1"]
[TimeControl "5400+30"]

1. e4 {[%emt 0:00:00]} c6 {[%emt 0:00:28]} 2. d4 {[%emt 0:00:00]} d5 {[%emt 0:00:03]} 3. e5 {[%emt 0:00:00]} Bf5 {[%emt 0:00:04]} 4. Nd2 {[%emt 0:00:00]} e6 {[%emt 0:00:07]} 5. Nb3 {[%emt 0:00:02]} c5 {[%emt 0:00:05]} 6. dxc5 {[%emt 0:00:17]} Bxc5 {[%emt 0:00:03]} 7. Nxc5 {[%emt 0:00:08]} Qa5+ {[%emt 0:00:02]} 8. c3 {[%emt 0:00:08]} Qxc5 {[%emt 0:00:02]} 9. Qa4+ {[%emt 0:00:52]} Nd7 {[%emt 0:02:17]} 10. Nf3 {[%emt 0:05:09]} Ne7 {[%emt 0:01:31]} 11. Bb5 {[%emt 0:04:16]} Qc7 {[%emt 0:01:14]} 12. Bxd7+ {[%emt 0:09:22]} Qxd7 {[%emt 0:00:19]} 13. Qxd7+ {[%emt 0:01:12]} Kxd7 {[%emt 0:00:07]} 14. Nd4 {[%emt 0:00:17]} Bd3 {[%emt 0:02:12]} 15. Bf4 {[%emt 0:00:43]} Nc6 {[%emt 0:02:44]} 16. Kd2 {[%emt 0:06:50]} Ba6 {[%emt 0:02:12]} 17. h4 {[%emt 0:04:22]} Nxd4 {[%emt 0:00:09]} 18. cxd4 {[%emt 0:00:05]} Rac8 {[%emt 0:01:46]} 19. Rac1 {[%emt 0:01:19]} Rxc1 {[%emt 0:00:12]} 20. Rxc1 {[%emt 0:00:08]} Rc8 {[%emt 0:00:05]} 21. Rh1 {[%emt 0:00:45]} Ke7 {[%emt 0:02:14]} 22. h5 {[%emt 0:00:32]} h6 {[%emt 0:03:54]} 23. b3 {[%emt 0:00:27]} Bb5 {[%emt 0:00:38]} 24. g4 {[%emt 0:00:43]} f5 {[%emt 0:03:30]} 25. exf6+ {[%emt 0:00:59]} Kxf6 {[%emt 0:00:06]} 26. Be5+ {[%emt 0:01:04]} Kf7 {[%emt 0:00:29]} 27. f4 {[%emt 0:02:24]} Be8 {[%emt 0:13:23]} 28. g5 {[%emt 0:01:31]} Kf8 {[%emt 0:01:05]} 29. Bd6+ {[%emt 0:03:51]} Kf7 {[%emt 0:01:54]} 30. a4 {[%emt 0:21:28]} Rc6 {[%emt 0:07:31]} 31. Be5 {[%emt 0:00:34]} Kf8 {[%emt 0:00:30]} 32. Rh3 {[%emt 0:00:22]} Bf7 {[%emt 0:01:24]} 33. g6 {[%emt 0:03:47]} Be8 {[%emt 0:00:02]} 34. Re3 {[%emt 0:00:34]} Bd7 {[%emt 0:01:11]} 35. f5 {[%emt 0:02:31]} a6 {[%emt 0:03:14]} 36. f6 {[%emt 0:00:40]} gxf6 {[%emt 0:00:05]} 37. Bxf6 {[%emt 0:00:15]} Kg8 {[%emt 0:04:28]} 38. Be5 {[%emt 0:11:03]} Rc8 {[%emt 0:02:22]} 39. Bd6 {[%emt 0:01:51]} Rc6 {[%emt 0:01:18]} 40. Bf4 {[%emt 0:00:52]} Kg7 {[%emt 0:00:58]} 41. Be5+ {[%emt 0:00:34]} Kg8 {[%emt 0:00:02]} 42. Rf3 {[%emt 0:00:21]} Be8 {[%emt 0:00:34]} 43. a5 {[%emt 0:02:14]} b6 {[%emt 0:03:24]} 44. g7 {[%emt 0:00:27]} Bf7 {[%emt 0:00:03]} 45. Rf6 {[%emt 0:00:11]} Kxg7 {[%emt 0:00:39]} 46. Rxe6+ {[%emt 0:00:03]} 0-1

[Event "2nd Gujarat Open 2019"]
[Site "Ahmedabad, Gujarat"]
[Date "2019.09.29"]
[Round "10.5"]
[White "Rahman, Ziaur"]
[Black "Karthikeyan, P.."]
[Result "0-1"]
[ECO "A45"]
[WhiteElo "2492"]
[BlackElo "2408"]
[Annotator "ChessBase"]
[PlyCount "136"]
[EventDate "2019.09.22"]
[EventType "swiss"]
[EventCountry "IND"]
[SourceTitle "playchess.com"]
[Source "ChessBase"]
[SourceQuality "1"]
[TimeControl "5400+30"]

1. d4 {[%emt 0:00:00]} Nf6 {[%emt 0:01:57]} 2. Bg5 {[%emt 0:00:00]} e6 {[%emt 0:00:41]} 3. Nd2 {[%emt 0:01:01]} h6 {[%emt 0:01:52]} 4. Bh4 {[%emt 0:00:16]} c5 {[%emt 0:00:07]} 5. c3 {[%emt 0:03:45]} Nc6 {[%emt 0:01:52]} 6. e3 {[%emt 0:01:16]} d5 {[%emt 0:00:15]} 7. Ngf3 {[%emt 0:02:15]} g5 {[%emt 0:01:05]} 8. Bg3 {[%emt 0:00:20]} Nh5 {[%emt 0:00:10]} 9. Qc2 {[%emt 0:08:49]} Nxg3 {[%emt 0:01:24]} 10. hxg3 {[%emt 0:02:15]} g4 {[%emt 0:00:06]} 11. Ng1 {[%emt 0:05:40]} cxd4 {[%emt 0:02:37]} 12. exd4 {[%emt 0:02:35]} Qg5 {[%emt 0:00:40]} 13. Bb5 {[%emt 0:02:05]} Bd7 {[%emt 0:00:31]} 14. Ne2 {[%emt 0:00:23]} Bd6 {[%emt 0:00:49]} 15. Nb3 {[%emt 0:08:32]} O-O-O {[%emt 0:03:44]} 16. Qd2 {[%emt 0:04:28]} a6 {[%emt 0:03:52]} 17. Bd3 {[%emt 0:03:12]} e5 {[%emt 0:00:28]} 18. dxe5 {[%emt 0:04:45]} Nxe5 {[%emt 0:02:16]} 19. Nbd4 {[%emt 0:00:45]} Nxd3+ {[%emt 0:03:31]} 20. Qxd3 {[%emt 0:00:05]} h5 {[%emt 0:00:59]} 21. Qd2 {[%emt 0:00:50]} Qf6 {[%emt 0:01:07]} 22. Nf4 {[%emt 0:08:41]} Rde8+ {[%emt 0:04:23]} 23. Kd1 {[%emt 0:00:06]} Bc5 {[%emt 0:06:50]} 24. Kc2 {[%emt 0:03:18]} Bf5+ {[%emt 0:01:02]} 25. Nxf5 {[%emt 0:00:56]} Qxf5+ {[%emt 0:00:32]} 26. Kb3 {[%emt 0:01:44]} Qe4 {[%emt 0:04:39]} 27. Qxd5 {[%emt 0:05:05]} Qxd5+ {[%emt 0:01:10]} 28. Nxd5 {[%emt 0:00:02]} Bxf2 {[%emt 0:09:05]} 29. Raf1 {[%emt 0:01:56]} Re2 {[%emt 0:03:26]} 30. a4 {[%emt 0:05:15]} Rd2 {[%emt 0:03:19]} 31. c4 {[%emt 0:03:47]} Re8 {[%emt 0:02:01]} 32. Rxh5 {[%emt 0:01:05]} Ree2 {[%emt 0:01:31]} 33. Rb1 {[%emt 0:01:10]} Bxg3 {[%emt 0:02:24]} 34. c5 {[%emt 0:05:26]} Kd7 {[%emt 0:07:47]} 35. Nf6+ {[%emt 0:01:35]} Ke6 {[%emt 0:01:36]} 36. Nxg4 {[%emt 0:00:03]} f5 {[%emt 0:00:21]} 37. Rh6+ {[%emt 0:00:31]} Kd5 {[%emt 0:03:29]} 38. Nf6+ {[%emt 0:01:49]} Kxc5 {[%emt 0:00:32]} 39. Nd7+ {[%emt 0:03:33]} Kd4 {[%emt 0:01:08]} 40. Rb6 {[%emt 0:02:57]} Re7 {[%emt 0:02:15]} 41. Rxb7 {[%emt 0:01:31]} Ke3 {[%emt 0:02:43]} 42. Nc5 {[%emt 0:01:09]} Rxb7+ {[%emt 0:00:47]} 43. Nxb7 {[%emt 0:00:02]} Rxg2 {[%emt 0:00:44]} 44. Na5 {[%emt 0:00:42]} f4 {[%emt 0:04:48]} 45. Nc4+ {[%emt 0:00:04]} Ke2 {[%emt 0:00:05]} 46. Ne5 {[%emt 0:01:17]} f3 {[%emt 0:04:44]} 47. Nxf3 {[%emt 0:00:03]} Kxf3 {[%emt 0:00:05]} 48. Kc4 {[%emt 0:00:06]} Ke4 {[%emt 0:00:07]} 49. b4 {[%emt 0:00:26]} Rc2+ {[%emt 0:00:54]} 50. Kb3 {[%emt 0:01:27]} Rc8 {[%emt 0:02:00]} 51. Rg1 {[%emt 0:01:53]} Bd6 {[%emt 0:01:31]} 52. Rg6 {[%emt 0:00:44]} Kd5 {[%emt 0:00:11]} 53. Rg5+ {[%emt 0:00:22]} Be5 {[%emt 0:00:26]} 54. a5 {[%emt 0:02:04]} Rc3+ {[%emt 0:01:53]} 55. Ka4 {[%emt 0:00:02]} Rc1 {[%emt 0:00:26]} 56. Rg8 {[%emt 0:02:22]} Bd6 {[%emt 0:02:46]} 57. Ra8 {[%emt 0:01:08]} Rb1 {[%emt 0:00:30]} 58. Ka3 {[%emt 0:00:15]} Rxb4 {[%emt 0:00:15]} 59. Ka2 {[%emt 0:00:08]} Ra4+ {[%emt 0:00:08]} 60. Kb3 {[%emt 0:00:04]} Ra3+ {[%emt 0:00:18]} 61. Kb2 {[%emt 0:00:03]} Rxa5 {[%emt 0:00:13]} 62. Kb3 {[%emt 0:00:38]} Ra3+ {[%emt 0:00:42]} 63. Kb2 {[%emt 0:00:04]} a5 {[%emt 0:00:47]} 64. Ra6 {[%emt 0:00:30]} Bb4 {[%emt 0:00:15]} 65. Ra8 {[%emt 0:00:12]} Rg3 {[%emt 0:00:24]} 66. Rc8 {[%emt 0:00:11]} a4 {[%emt 0:00:59]} 67. Ra8 {[%emt 0:00:30]} Rg2+ {[%emt 0:00:07]} 68. Kb1 {[%emt 0:00:05]} Kc4 {[%emt 0:00:56]} 0-1

[Event "2nd Gujarat Open 2019"]
[Site "Ahmedabad, Gujarat"]
[Date "2019.09.29"]
[Round "10.6"]
[White "Laxman, R.R."]
[Black "Hesham, Abdelrahman"]
[Result "1-0"]
[ECO "A49"]
[WhiteElo "2437"]
[BlackElo "2396"]
[Annotator "ChessBase"]
[PlyCount "67"]
[EventDate "2019.09.22"]
[EventType "swiss"]
[EventCountry "IND"]
[SourceTitle "playchess.com"]
[Source "ChessBase"]
[SourceQuality "1"]
[TimeControl "5400+30"]

1. d4 {[%emt 0:00:00]} Nf6 {[%emt 0:00:07]} 2. Nf3 {[%emt 0:00:00]} g6 {[%emt 0:00:05]} 3. g3 {[%emt 0:00:41]} Bg7 {[%emt 0:00:06]} 4. Bg2 {[%emt 0:00:05]} O-O {[%emt 0:00:10]} 5. O-O {[%emt 0:00:54]} d6 {[%emt 0:00:10]} 6. b3 {[%emt 0:02:02]} b5 {[%emt 0:00:05]} 7. Bb2 {[%emt 0:00:42]} Bb7 {[%emt 0:00:09]} 8. Qd3 {[%emt 0:02:47]} a6 {[%emt 0:07:20]} 9. Nbd2 {[%emt 0:01:19]} c5 {[%emt 0:01:34]} 10. c3 {[%emt 0:09:09]} Nbd7 {[%emt 0:04:01]} 11. e4 {[%emt 0:01:12]} cxd4 {[%emt 0:03:33]} 12. cxd4 {[%emt 0:00:31]} b4 {[%emt 0:01:53]} 13. a3 {[%emt 0:01:45]} a5 {[%emt 0:00:38]} 14. axb4 {[%emt 0:01:11]} axb4 {[%emt 0:00:05]} 15. Rfc1 {[%emt 0:01:03]} d5 {[%emt 0:00:53]} 16. e5 {[%emt 0:00:53]} Ne4 {[%emt 0:01:52]} 17. Qb5 {[%emt 0:00:27]} Rb8 {[%emt 0:05:07]} 18. Qxb4 {[%emt 0:03:41]} Bh6 {[%emt 0:00:12]} 19. Rd1 {[%emt 0:02:07]} Ba6 {[%emt 0:01:31]} 20. Qa3 {[%emt 0:02:04]} Be2 {[%emt 0:01:32]} 21. Re1 {[%emt 0:00:13]} Bd3 {[%emt 0:00:06]} 22. b4 {[%emt 0:02:52]} Bc2 {[%emt 0:02:01]} 23. Nb3 {[%emt 0:02:54]} Nb6 {[%emt 0:01:56]} 24. Na5 {[%emt 0:02:41]} Nc4 {[%emt 0:01:23]} 25. Nxc4 {[%emt 0:01:01]} dxc4 {[%emt 0:00:06]} 26. Bc1 {[%emt 0:00:09]} Bxc1 {[%emt 0:07:30]} 27. Qxc1 {[%emt 0:01:18]} Bd3 {[%emt 0:01:36]} 28. Qh6 {[%emt 0:00:02]} f6 {[%emt 0:02:05]} 29. exf6 {[%emt 0:01:33]} Nxf6 {[%emt 0:01:42]} 30. Ne5 {[%emt 0:03:07]} Qxd4 {[%emt 0:03:02]} 31. Nc6 {[%emt 0:00:09]} Qb2 {[%emt 0:00:48]} 32. Nxb8 {[%emt 0:01:53]} Rxb8 {[%emt 0:03:04]} 33. Qe3 {[%emt 0:04:15]} Ng4 {[%emt 0:09:54]} 34. Qe6+ {[%emt 0:00:04]} 1-0

[Event "2nd Gujarat Open 2019"]
[Site "Ahmedabad, Gujarat"]
[Date "2019.09.29"]
[Round "10.7"]
[White "Manik, Mikulas"]
[Black "Lugovskoy, Maxim"]
[Result "0-1"]
[ECO "C11"]
[WhiteElo "2375"]
[BlackElo "2422"]
[Annotator "ChessBase"]
[PlyCount "68"]
[EventDate "2019.09.22"]
[EventType "swiss"]
[EventCountry "IND"]
[SourceTitle "playchess.com"]
[Source "ChessBase"]
[SourceQuality "1"]
[TimeControl "5400+30"]

1. e4 {[%emt 0:00:00]} e6 {[%emt 0:00:47]} 2. d4 {[%emt 0:00:00]} d5 {[%emt 0:00:04]} 3. Nc3 {[%emt 0:00:00]} Nf6 {[%emt 0:00:23]} 4. e5 {[%emt 0:01:55]} Nfd7 {[%emt 0:00:49]} 5. f4 {[%emt 0:03:01]} c5 {[%emt 0:00:15]} 6. Nf3 {[%emt 0:00:03]} Nc6 {[%emt 0:00:05]} 7. Be3 {[%emt 0:00:19]} Be7 {[%emt 0:00:10]} 8. Qd2 {[%emt 0:01:05]} O-O {[%emt 0:00:06]} 9. dxc5 {[%emt 0:01:49]} Nxc5 {[%emt 0:02:51]} 10. a3 {[%emt 0:02:43]} b6 {[%emt 0:08:54]} 11. Be2 {[%emt 0:08:17]} f5 {[%emt 0:01:22]} 12. exf6 {[%emt 0:02:03]} Bxf6 {[%emt 0:00:17]} 13. O-O-O {[%emt 0:08:51]} Bd7 {[%emt 0:06:08]} 14. Kb1 {[%emt 0:10:00]} Rc8 {[%emt 0:07:36]} 15. g3 {[%emt 0:13:37]} Be8 {[%emt 0:09:09]} 16. Nd4 {[%emt 0:07:48]} Bg6 {[%emt 0:09:08]} 17. f5 {[%emt 0:10:17]} Nxd4 {[%emt 0:06:07]} 18. fxg6 {[%emt 0:00:34]} Nf5 {[%emt 0:00:05]} 19. gxh7+ {[%emt 0:02:25]} Kh8 {[%emt 0:01:03]} 20. Nb5 {[%emt 0:10:09]} Ne4 {[%emt 0:02:41]} 21. Qd3 {[%emt 0:00:12]} Nxe3 {[%emt 0:05:20]} 22. Qxe3 {[%emt 0:00:30]} Bg5 {[%emt 0:00:06]} 23. Qb3 {[%emt 0:02:18]} Rf2 {[%emt 0:00:35]} 24. Bd3 {[%emt 0:04:06]} Nc5 {[%emt 0:00:06]} 25. Qb4 {[%emt 0:02:01]} Bf6 {[%emt 0:00:28]} 26. c3 {[%emt 0:02:48]} Qd7 {[%emt 0:00:36]} 27. Nd4 {[%emt 0:02:26]} e5 {[%emt 0:00:25]} 28. Bb5 {[%emt 0:01:03]} Qh3 {[%emt 0:00:13]} 29. Nb3 {[%emt 0:01:21]} a5 {[%emt 0:00:05]} 30. Nxa5 {[%emt 0:00:06]} bxa5 {[%emt 0:00:04]} 31. Qxa5 {[%emt 0:00:06]} d4 {[%emt 0:01:05]} 32. cxd4 {[%emt 0:00:42]} exd4 {[%emt 0:00:04]} 33. Rhf1 {[%emt 0:00:54]} Qf5+ {[%emt 0:01:01]} 34. Ka2 {[%emt 0:00:11]} Qd5+ {[%emt 0:00:24]} 0-1

[Event "2nd Gujarat Open 2019"]
[Site "Ahmedabad, Gujarat"]
[Date "2019.09.29"]
[Round "10.8"]
[White "Lakshmi Narayanan M V"]
[Black "Konguvel, Ponnuswamy"]
[Result "1/2-1/2"]
[ECO "E88"]
[WhiteElo "2188"]
[BlackElo "2374"]
[Annotator "ChessBase"]
[PlyCount "56"]
[EventDate "2019.09.22"]
[EventType "swiss"]
[EventCountry "IND"]
[SourceTitle "playchess.com"]
[Source "ChessBase"]
[SourceQuality "1"]
[TimeControl "5400+30"]

1. d4 {[%emt 0:00:00]} Nf6 {[%emt 0:00:00]} 2. c4 {[%emt 0:00:06]} g6 {[%emt 0:00:00]} 3. Nc3 {[%emt 0:00:45]} Bg7 {[%emt 0:00:09]} 4. e4 {[%emt 0:00:17]} d6 {[%emt 0:00:03]} 5. f3 {[%emt 0:00:22]} O-O {[%emt 0:00:22]} 6. Be3 {[%emt 0:00:14]} e5 {[%emt 0:00:53]} 7. d5 {[%emt 0:00:30]} c6 {[%emt 0:00:32]} 8. Qd2 {[%emt 0:01:17]} cxd5 {[%emt 0:02:56]} 9. cxd5 {[%emt 0:01:30]} Nbd7 {[%emt 0:01:42]} 10. Nh3 {[%emt 0:06:47]} a6 {[%emt 0:08:24]} 11. Nf2 {[%emt 0:03:07]} b5 {[%emt 0:02:14]} 12. g4 {[%emt 0:05:21]} Nc5 {[%emt 0:03:30]} 13. Nd3 {[%emt 0:08:53]} Nfd7 {[%emt 0:10:36]} 14. O-O-O {[%emt 0:03:42]} Qa5 {[%emt 0:16:47]} 15. Kb1 {[%emt 0:01:46]} b4 {[%emt 0:01:22]} 16. Ne2 {[%emt 0:00:51]} Nxd3 {[%emt 0:00:57]} 17. Qxd3 {[%emt 0:00:08]} Nc5 {[%emt 0:00:03]} 18. Qd2 {[%emt 0:01:35]} f5 {[%emt 0:06:21]} 19. gxf5 {[%emt 0:00:55]} gxf5 {[%emt 0:00:02]} 20. Bxc5 {[%emt 0:06:42]} Qxc5 {[%emt 0:00:54]} 21. Ng3 {[%emt 0:01:09]} fxe4 {[%emt 0:13:28]} 22. Nxe4 {[%emt 0:02:43]} Bf5 {[%emt 0:00:02]} 23. Bh3 {[%emt 0:01:44]} Bxe4+ {[%emt 0:06:04]} 24. fxe4 {[%emt 0:00:29]} Rf2 {[%emt 0:00:02]} 25. Qc1 {[%emt 0:06:13]} Bh6 {[%emt 0:12:03]} 26. Qxc5 {[%emt 0:01:37]} dxc5 {[%emt 0:00:01]} 27. Rdf1 {[%emt 0:03:31]} Rxf1+ {[%emt 0:05:23]} 28. Rxf1 {[%emt 0:00:25]} Bf4 {[%emt 0:00:02]} 1/2-1/2

[Event "2nd Gujarat Open 2019"]
[Site "Ahmedabad, Gujarat"]
[Date "2019.09.29"]
[Round "10.9"]
[White "Mehdi Hasan Parag"]
[Black "Deepan Chakkravarthy J."]
[Result "0-1"]
[ECO "B06"]
[WhiteElo "2183"]
[BlackElo "2539"]
[Annotator "ChessBase"]
[PlyCount "92"]
[EventDate "2019.09.22"]
[EventType "swiss"]
[EventCountry "IND"]
[SourceTitle "playchess.com"]
[Source "ChessBase"]
[SourceQuality "1"]
[TimeControl "5400+30"]

1. e4 {[%emt 0:00:00]} g6 {[%emt 0:08:06]} 2. d4 {[%emt 0:00:00]} Bg7 {[%emt 0:00:03]} 3. Nc3 {[%emt 0:00:07]} a6 {[%emt 0:00:06]} 4. f4 {[%emt 0:00:16]} b5 {[%emt 0:00:06]} 5. Nf3 {[%emt 0:00:23]} Bb7 {[%emt 0:00:03]} 6. Bd3 {[%emt 0:00:34]} d6 {[%emt 0:00:04]} 7. O-O {[%emt 0:00:42]} Nd7 {[%emt 0:00:32]} 8. a4 {[%emt 0:04:20]} c5 {[%emt 0:08:34]} 9. axb5 {[%emt 0:07:03]} cxd4 {[%emt 0:00:51]} 10. Ne2 {[%emt 0:01:00]} axb5 {[%emt 0:20:48]} 11. Rxa8 {[%emt 0:00:18]} Qxa8 {[%emt 0:00:11]} 12. Nexd4 {[%emt 0:02:47]} Bxe4 {[%emt 0:00:05]} 13. Nxb5 {[%emt 0:00:29]} Bxf3 {[%emt 0:00:05]} 14. Rxf3 {[%emt 0:04:55]} Qb8 {[%emt 0:00:04]} 15. Re3 {[%emt 0:04:43]} Ngf6 16. c4 {[%emt 0:00:58]} Nc5 {[%emt 0:10:18]} 17. Bc2 {[%emt 0:03:46]} d5 {[%emt 0:04:03]} 18. b4 {[%emt 0:00:58]} Nce4 {[%emt 0:04:03]} 19. Bb2 {[%emt 0:06:57]} Qxf4 {[%emt 0:02:07]} 20. Rf3 {[%emt 0:05:08]} Qb8 {[%emt 0:00:31]} 21. Bxe4 {[%emt 0:10:01]} dxe4 {[%emt 0:00:33]} 22. Re3 {[%emt 0:02:18]} Qf4 {[%emt 0:02:16]} 23. Qe1 {[%emt 0:12:33]} Bh6 {[%emt 0:17:51]} 24. Re2 {[%emt 0:00:17]} O-O {[%emt 0:00:09]} 25. Bxf6 {[%emt 0:00:46]} Qxf6 {[%emt 0:00:04]} 26. Rxe4 {[%emt 0:02:03]} Ra8 {[%emt 0:00:04]} 27. Nd4 {[%emt 0:01:50]} Be3+ {[%emt 0:05:07]} 28. Rxe3 {[%emt 0:00:29]} Qxd4 {[%emt 0:00:04]} 29. Qc3 {[%emt 0:02:38]} Ra1+ {[%emt 0:03:55]} 30. Kf2 {[%emt 0:00:07]} Qh4+ {[%emt 0:01:11]} 31. Rg3 {[%emt 0:08:56]} Rb1 {[%emt 0:00:04]} 32. h3 {[%emt 0:02:21]} f5 {[%emt 0:00:06]} 33. Ke2 {[%emt 0:01:52]} Qe4+ {[%emt 0:01:36]} 34. Kf2 {[%emt 0:00:12]} e5 {[%emt 0:03:12]} 35. b5 {[%emt 0:01:09]} Qf4+ {[%emt 0:03:38]} 36. Rf3 {[%emt 0:00:20]} Qh2 {[%emt 0:00:24]} 37. Qd2 {[%emt 0:01:25]} Kg7 {[%emt 0:01:56]} 38. Rd3 {[%emt 0:09:45]} Qg1+ {[%emt 0:01:16]} 39. Kg3 {[%emt 0:00:53]} f4+ {[%emt 0:00:04]} 40. Kh4 {[%emt 0:02:27]} Kh6 {[%emt 0:01:57]} 41. Rf3 {[%emt 0:01:25]} Rd1 {[%emt 0:01:19]} 42. Qf2 {[%emt 0:01:12]} Qxf2+ {[%emt 0:00:11]} 43. Rxf2 {[%emt 0:00:01]} Rd3 {[%emt 0:00:05]} 44. Rf3 {[%emt 0:00:38]} e4 {[%emt 0:00:10]} 45. Rf2 {[%emt 0:00:56]} g5+ {[%emt 0:00:07]} 46. Kg4 {[%emt 0:00:22]} Kg6 {[%emt 0:00:01]} 0-1